bitfinex/quotes_ETHUSD_20241119
["timestamp","ask_amount","ask_price","bid_price","bid_amount"]
[1732023902283,3.96774542,3104.3,3104.0,3.22158]
[1732023902498,3.96774542,3104.3,3103.8,3.22177]
[1732023902653,3.96774542,3104.3,3104.0,3.22159]
[1732023902850,3.96774542,3104.3,3104.1,3.22151]
[1732023903053,3.96774542,3104.5,3104.3,3.22133]
[1732023903257,3.96774542,3104.6,3104.1,3.22148]
[1732023903480,3.96774542,3104.6,3104.1,6.44296]
[1732023903710,3.96774542,3104.6,3104.5,3.22113]
[1732023903892,3.96895011,3104.8,3104.7,3.22092]
[1732023904196,203.96895011,3105.0,3104.5,3.22113]
[1732023904409,203.96895011,3105.0,3104.7,3.22083]
[1732023904548,3.96895011,3104.9,3104.7,3.22083]
[1732023904756,203.96895011,3105.0,3104.7,3.22083]
[1732023905072,203.96895011,3105.0,3104.8,3.22081]
[1732023905268,200.0,3105.0,3104.8,3.22081]
[1732023905476,200.0,3105.0,3104.9,3.22071]
[1732023905702,200.0,3105.0,3104.9,7.48972938]
[1732023905909,200.0,3105.0,3104.9,4.57621]
[1732023906569,200.0,3105.0,3104.9,4.58621]
[1732023906766,192.0002,3105.0,3104.9,10.49972938]
[1732023906969,167.11575,3105.0,3104.9,12.19386732]
[1732023907226,151.11615,3105.0,3104.9,12.19386732]
[1732023907509,139.03686973,3105.0,3104.9,12.19386732]
[1732023907666,124.29630405,3105.0,3104.9,12.19386732]
[1732023907866,105.9836468,3105.0,3104.9,10.49972938]
[1732023908209,105.9836468,3105.0,3104.9,9.93029327]
[1732023908210,97.53675462,3105.0,3104.9,9.93029327]
[1732023908376,95.49959446,3105.0,3104.9,9.93029327]
[1732023908706,80.03544216,3105.0,3104.9,11.19615431]
[1732023908926,76.76614405,3105.0,3104.9,22.43384889]
[1732023909218,70.28062361,3105.0,3104.9,22.43384889]
[1732023909370,69.37922361,3105.0,3104.9,22.76594889]
[1732023909563,52.42734979,3105.0,3104.9,11.47496332]
[1732023909778,43.58734979,3105.0,3104.9,11.47496332]
[1732023909980,43.58734979,3105.0,3104.9,11.46496332]
[1732023909981,41.64214921,3105.0,3104.9,11.46496332]
[1732023910191,41.64214921,3105.0,3104.9,10.20586385]
[1732023911269,40.03183921,3105.0,3104.9,10.20586385]
[1732023911469,33.59059921,3105.0,3104.9,10.20586385]
[1732023911670,28.75966921,3105.0,3104.9,10.75586385]
[1732023911983,25.53904921,3105.0,3104.9,10.75586385]
[1732023912213,24.65044921,3105.0,3104.9,10.75586385]
[1732023912511,14.02044921,3105.0,3104.9,10.75586385]
[1732023912667,8.2e-07,3105.0,3104.9,10.75586385]
[1732023913013,0.801,3107.4,3106.9,3.21857]
[1732023913227,0.04725958,3107.3,3107.1,3.2184]
[1732023913518,0.7538,3107.7,3106.9,3.21856]
[1732023913872,0.7538,3107.7,3106.1,0.02]
[1732023914037,0.7757,3107.1,3106.3,3.21918]
[1732023914188,0.7757,3107.1,3105.9,0.01]
[1732023914189,0.04728955,3107.0,3106.1,3.21942]
[1732023914381,0.04728955,3107.0,3106.3,3.21918]
[1732023914742,0.04728955,3107.0,3106.2,3.21934]
[1732023915039,0.87914543,3107.0,3106.1,3.21944]
[1732023915182,0.87914543,3107.0,3105.6,3.21993]
[1732023915383,3.21893,3106.7,3105.9,3.21967]
[1732023915682,0.04724319,3106.6,3106.1,3.21945]
[1732023916125,0.04724319,3106.6,3106.3,3.21917]
[1732023916342,0.04724319,3106.6,3106.3,3.21922]
[1732023916491,3.21856,3107.0,3106.3,3.21922]
[1732023916696,0.04566728,3106.5,3106.3,3.21922]
[1732023916928,1.23505539,3107.1,3106.1,3.21942]
[1732023916929,0.7757,3107.1,3106.6,3.21894]
[1732023917227,3.21816,3107.4,3107.0,3.21851]
[1732023917228,0.7797,3107.4,3107.0,3.21851]
[1732023917945,0.7797,3107.4,3106.8,3.21874]
[1732023918149,1.179464,3107.4,3106.8,3.21867]
[1732023918349,0.7797,3107.4,3106.9,3.21857]
[1732023918629,0.8017,3107.6,3107.0,3.21852]
[1732023918800,0.8017,3107.6,3107.1,3.21834]
[1732023919000,0.8017,3107.6,3106.5,3.22898]
[1732023919001,4.01969,3107.6,3106.5,3.22897]
[1732023919251,3.21843,3107.2,3106.5,3.21905]
[1732023919586,3.21849,3107.1,3106.5,3.21905]
[1732023919787,3.21855,3107.0,3106.3,6.43839]
[1732023920033,3.21855,3107.0,3106.4,3.21914]
[1732023920196,3.21904,3106.6,3105.9,3.21961]
[1732023920527,0.04570968,3106.5,3106.1,3.21939]
[1732023920840,0.7683,3106.9,3106.2,3.21928]
[1732023920987,0.04572906,3106.8,3106.4,3.21909]
[1732023921283,0.44441706,3106.8,3106.5,3.21905]
[1732023921482,0.04572906,3106.8,3106.7,3.21884]
[1732023921927,0.7807,3107.2,3106.7,3.21884]
[1732023922137,0.04572906,3106.8,3106.7,3.21884]
[1732023922301,1.180582,3107.2,3106.1,0.01]
[1732023922302,0.7807,3107.2,3107.0,3.21852]
[1732023922488,4.4150165,3107.5,3107.0,3.21852]
[1732023922698,4.4150165,3107.5,3106.9,3.21857]
[1732023922699,0.36522165,3107.4,3106.9,3.21857]
[1732023922905,4.4149665,3107.5,3106.9,3.21857]
[1732023923253,0.04573848,3107.4,3106.9,3.21857]
[1732023923460,0.04573848,3107.4,3107.3,3.21822]
[1732023923602,0.04573848,3107.4,3107.2,3.21825]
[1732023924004,0.04573848,3107.4,3107.3,3.21822]
[1732023924331,4.03846,3107.8,3106.7,3.21882]
[1732023924513,0.04572615,3107.4,3107.3,3.21821]
[1732023924721,1.84601639,3107.8,3107.2,3.21824]
[1732023924928,1.84601639,3107.8,3107.3,3.21822]
[1732023924929,0.04572615,3107.4,3107.3,3.21822]
[1732023925163,0.8207,3107.8,3107.3,3.21822]
[1732023925328,0.04575311,3107.4,3106.9,3.21855]
[1732023925528,3.21808,3107.5,3107.0,3.2185]
[1732023925860,0.8207,3107.8,3106.7,6.21877]
[1732023925861,0.04575311,3107.4,3106.7,6.21877]
[1732023926015,3.21833,3107.2,3106.5,3.55]
[1732023926210,3.21833,3107.2,3106.6,3.21888]
[1732023926211,0.0457484,3107.1,3106.6,3.21888]
[1732023926645,3.21818,3107.4,3106.6,3.21888]
[1732023926955,4.03845,3107.8,3106.8,3.21868]
[1732023926956,0.36756954,3107.3,3106.8,3.21868]
[1732023927164,0.04575154,3107.3,3106.8,3.21868]
[1732023927345,3.26398154,3107.3,3106.6,6.43772]
[1732023927552,3.21833,3107.2,3106.6,3.21886]
[1732023927857,0.04574764,3107.1,3106.6,3.21886]
[1732023928233,0.04574764,3107.1,3106.8,3.21874]
[1732023928533,3.21814,3107.4,3106.8,3.21868]
[1732023928724,3.21795,3107.6,3107.0,3.21852]
[1732023928725,3.21805,3107.5,3107.0,3.21852]
[1732023928960,3.539845,3107.5,3107.0,3.21852]
[1732023929505,3.21795,3107.6,3106.8,0.1397]
[1732023929707,3.21787,3107.7,3107.1,6.43674]
[1732023929867,3.21787,3107.7,3107.1,6.43672]
[1732023930390,0.8207,3107.8,3106.8,0.1497]
[1732023930701,0.8207,3107.8,3107.4,3.21803]
[1732023931194,0.403831,3107.7,3107.3,3.21816]
[1732023931395,0.8207,3107.8,3107.3,3.21816]
[1732023931694,0.8207,3107.8,3107.5,3.21792]
[1732023932159,0.8207,3107.8,3107.6,3.21786]
[1732023932364,8.91,3108.4,3107.5,0.1397]
[1732023932365,0.8279,3108.4,3107.5,0.1397]
[1732023932550,4.04503,3108.4,3107.7,3.21781]
[1732023932756,4.04503,3108.4,3107.7,6.43556]
[1732023932953,0.8279,3108.4,3107.5,3.35767]
[1732023933154,0.8279,3108.4,3108.1,3.21737]
[1732023933453,0.8279,3108.4,3108.1,3.21738]
[1732023933705,0.8279,3108.4,3108.3,3.21719]
[1732023934011,3.81785385,3108.9,3108.4,3.21704]
[1732023934012,0.8539,3108.9,3108.4,3.21704]
[1732023934303,3.21676,3108.8,3108.2,3.21722]
[1732023934666,0.8539,3108.9,3108.4,3.21708]
[1732023934977,0.8539,3108.9,3108.3,3.21716]
[1732023935364,4.07048,3108.9,3108.2,3.21722]
[1732023935663,0.8539,3108.9,3108.3,3.21709]
[1732023935858,0.8539,3108.9,3108.6,3.21678]
[1732023936317,0.8539,3108.9,3108.4,3.21707]
[1732023936525,0.8539,3108.9,3107.9,0.1397]
[1732023936526,3.21668,3108.8,3108.0,3.21747]
[1732023936733,3.21697,3108.6,3108.0,3.21749]
[1732023936885,3.30951045,3108.7,3108.0,3.21743]
[1732023937080,0.09278972,3108.5,3108.1,3.2173]
[1732023937381,0.09278972,3108.4,3108.3,3.21717]
[1732023937825,0.8539,3108.9,3108.4,3.21702]
[1732023938008,1.260929,3108.9,3108.4,3.21707]
[1732023938211,1.260929,3108.9,3108.3,3.21717]
[1732023938212,0.09278279,3108.8,3108.5,3.21691]
[1732023938525,0.8641,3109.2,3108.8,3.21663]
[1732023938888,0.8641,3109.2,3108.9,3.21655]
[1732023939733,0.8641,3109.2,3108.3,0.1397]
[1732023939734,3.21649,3109.0,3108.5,3.21695]
[1732023939942,4.08044,3109.2,3108.6,3.21679]
[1732023940098,4.488484,3109.2,3108.6,3.21679]
[1732023940298,3.21638,3109.1,3108.6,3.21679]
[1732023940683,1.272144,3109.2,3108.1,3.21737]
[1732023940885,3.21711,3108.4,3107.9,3.2175]
[1732023941132,3.21711,3108.4,3107.4,0.1397]
[1732023941133,4.02937,3108.4,3107.4,0.1397]
[1732023941348,0.321711,3108.3,3107.7,3.21772]
[1732023941490,0.321711,3108.3,3107.5,3.21802]
[1732023941693,0.8122,3108.4,3107.4,0.1497]
[1732023942004,0.8122,3108.4,3107.5,3.21802]
[1732023942192,0.8122,3108.4,3107.8,3.21762]
[1732023942407,1.215126,3108.4,3107.8,3.21762]
[1732023942705,0.8122,3108.4,3108.1,3.21731]
[1732023943045,0.8122,3108.4,3108.2,3.21729]
[1732023943205,0.8122,3108.8,3108.2,3.21729]
[1732023943534,1.133858,3108.8,3108.3,3.21713]
[1732023943882,1.133858,3108.8,3108.4,3.217]
[1732023944119,0.8122,3108.8,3108.5,3.21692]
[1732023944773,0.8122,3108.8,3108.4,3.217]
[1732023944917,0.837,3109.2,3108.6,3.21686]
[1732023945354,0.405318,3109.1,3108.6,3.21684]
[1732023945670,0.837,3109.2,3108.6,3.21684]
[1732023945869,0.787,3109.2,3108.6,3.21684]
[1732023946020,3.21642,3109.1,3108.6,3.21684]
[1732023946221,3.21663,3108.9,3108.1,3.21729]
[1732023946568,4.60485385,3109.2,3108.0,0.1397]
[1732023946864,0.787,3109.2,3108.7,3.21675]
[1732023947032,0.787,3109.2,3108.7,3.21671]
[1732023947233,0.787,3109.2,3108.5,3.21692]
[1732023947454,4.00327,3109.2,3108.7,3.21676]
[1732023947803,4.00327,3109.2,3108.3,3.21709]
[1732023947804,3.21651,3109.0,3108.3,3.21709]
[1732023947966,3.21651,3109.0,3108.5,3.21695]
[1732023948169,0.7620117,3109.0,3108.0,0.1397]
[1732023948376,4.00332,3109.2,3108.0,0.1397]
[1732023948696,0.787,3109.2,3108.7,3.21669]
[1732023948821,0.787,3109.2,3108.9,3.2165]
[1732023949043,0.787,3109.2,3108.7,3.21669]
[1732023949245,0.787,3109.2,3108.8,3.21666]
[1732023950187,0.787,3109.2,3108.9,3.21656]
[1732023950543,3.21556,3109.9,3108.3,3.21715]
[1732023950544,0.8488,3109.9,3109.3,3.21612]
[1732023950896,0.8488,3109.9,3109.1,3.21634]
[1732023950897,4.06434,3109.9,3109.1,3.21629]
[1732023951065,4.06434,3109.9,3108.7,0.1897]
[1732023951066,0.406434,3109.8,3109.0,3.21641]
[1732023951393,0.8488,3109.9,3109.4,3.21597]
[1732023951603,0.8028,3110.1,3109.3,0.1897]
[1732023951954,0.8028,3110.1,3109.7,3.21567]
[1732023952406,0.08981836,3110.0,3109.8,3.21558]
[1732023952571,0.08981836,3110.0,3109.8,3.2156]
[1732023952779,0.08981836,3110.0,3109.7,3.21568]
[1732023953190,0.8028,3110.1,3109.7,3.21568]
[1732023953510,0.8028,3110.1,3109.7,3.21565]
[1732023953656,0.08988837,3110.0,3109.9,3.2155]
[1732023954002,3.81785385,3111.0,3109.8,3.21561]
[1732023954003,0.8461,3110.4,3109.8,3.21561]
[1732023954219,0.8461,3110.4,3110.0,3.21542]
[1732023954375,0.08989683,3110.3,3110.0,3.21542]
[1732023955110,0.08989683,3110.3,3110.0,3.21535]
[1732023956100,0.08989683,3110.3,3109.9,3.21549]
[1732023956323,0.08989683,3110.3,3109.4,3.21603]
[1732023956468,0.08989683,3110.3,3109.3,0.1997]
[1732023956469,0.08989683,3110.3,3109.8,3.21554]
[1732023956674,0.08989683,3110.3,3110.0,3.21543]
[1732023957710,3.21463,3110.8,3110.2,3.21522]
[1732023957711,0.8531,3110.7,3110.2,3.21522]
[1732023957936,1.21274154,3110.7,3110.2,3.21522]
[1732023958082,4.42752154,3110.7,3110.0,3.21543]
[1732023958297,0.8531,3110.7,3110.0,0.1897]
[1732023958818,4.06782,3110.7,3110.0,0.1897]
[1732023959261,4.06782,3110.7,3110.1,3.21523]
[1732023959465,0.8531,3110.7,3110.1,3.21523]
[1732023959664,3.21498,3110.5,3109.9,3.21551]
[1732023959820,0.406808,3110.5,3109.9,3.21551]
[1732023960164,0.8447,3110.4,3109.9,3.21551]
[1732023960358,3.21523,3110.2,3109.5,3.21591]
[1732023960664,3.2153,3110.2,3109.5,3.21588]
[1732023960869,3.2153,3110.2,3108.9,3.21653]
[1732023960870,0.8447,3109.8,3108.9,3.40423]
[1732023961067,0.8447,3109.8,3108.9,3.21653]
[1732023961068,3.21602,3109.5,3108.9,3.21653]
[1732023961623,3.21595,3109.5,3108.9,3.21653]
[1732023961979,3.21595,3109.5,3108.6,0.1977]
[1732023961980,3.21617,3109.3,3108.6,3.21687]
[1732023962180,3.21617,3109.3,3107.9,3.23759]
[1732023962181,3.21637,3109.1,3108.4,3.217]
[1732023962324,0.8602,3109.2,3108.6,3.21681]
[1732023962325,4.398077,3109.2,3108.6,3.21681]
[1732023962528,1.181817,3109.2,3108.6,3.21681]
[1732023963025,4.398077,3109.2,3108.7,3.21675]
[1732023963377,4.07646,3109.2,3108.7,3.21675]
[1732023963663,0.8602,3109.2,3108.8,3.21657]
[1732023963883,0.8749,3109.7,3109.2,3.21625]
[1732023964022,0.8749,3109.7,3109.4,3.21605]
[1732023964223,1.52125771,3109.7,3109.0,3.21641]
[1732023964421,0.8749,3109.7,3109.0,3.21641]
[1732023964980,0.8749,3109.7,3109.0,3.21646]
[1732023964981,4.0907,3109.7,3109.0,3.21646]
[1732023965275,0.8749,3109.7,3109.4,3.21598]
[1732023965479,4.0907,3109.7,3109.2,3.21621]
[1732023965770,3.321523,3110.1,3108.8,3.21667]
[1732023965771,0.8009,3110.1,3108.8,3.21667]
[1732023965924,0.8009,3110.1,3109.9,3.21546]
[1732023966126,0.83,3110.5,3109.9,3.21548]
[1732023966439,0.83,3110.5,3110.2,3.21521]
[1732023966660,0.83,3110.5,3110.4,3.21502]
[1732023966860,4.07402,3110.9,3110.4,3.21502]
[1732023967065,1.56273039,3110.9,3110.2,3.21516]
[1732023967385,4.77733039,3110.9,3110.2,3.21516]
[1732023967549,4.0741,3110.9,3110.2,3.21516]
[1732023967889,4.07408,3110.9,3110.4,3.21501]
[1732023968089,0.08400037,3110.8,3110.2,3.21516]
[1732023968402,0.08400037,3110.8,3110.2,6.43032]
[1732023968564,3.21477,3110.7,3110.0,6.43074]
[1732023968761,3.21477,3110.7,3110.2,3.21517]
[1732023969087,0.08402841,3110.6,3110.2,3.21517]
[1732023969305,4.07402,3110.9,3110.2,3.21517]
[1732023969513,0.08402841,3110.5,3110.2,3.21517]
[1732023969802,3.21462,3110.8,3110.2,3.21517]
[1732023970099,3.21462,3110.8,3109.4,3.21602]
[1732023970100,3.21523,3110.2,3109.4,3.21602]
[1732023970300,0.7996,3110.3,3109.4,3.21602]
[1732023970301,3.536933,3110.1,3109.4,3.21602]
[1732023970455,3.21541,3110.1,3109.6,3.21579]
[1732023970655,0.08402917,3110.0,3109.2,3.21622]
[1732023970896,3.21583,3109.7,3109.0,6.43285]
[1732023971102,0.95872917,3109.9,3109.4,3.21605]
[1732023971312,3.21566,3109.8,3109.2,3.21622]
[1732023971475,3.21591,3109.6,3108.7,0.1877]
[1732023971803,3.21591,3109.6,3109.0,3.21637]
[1732023972009,0.8747,3109.9,3109.2,3.21625]
[1732023972010,0.08402917,3109.5,3109.2,3.21625]
[1732023972208,0.08402917,3109.5,3109.4,3.21605]
[1732023972417,0.8747,3109.9,3109.4,3.21605]
[1732023972701,3.21564,3109.8,3109.0,3.2164]
[1732023972924,0.08397391,3109.8,3108.5,3.21698]
[1732023973220,0.08397391,3109.8,3109.3,3.21609]
[1732023973705,0.08397391,3109.8,3109.3,3.21614]
[1732023973903,3.21584,3109.6,3109.1,3.21636]
[1732023974407,0.0839856,3109.5,3109.1,3.21626]
[1732023974600,0.0839856,3109.5,3109.0,3.21646]
[1732023974807,0.8747,3109.9,3108.9,3.21656]
[1732023974976,0.08397936,3109.4,3108.9,3.2165]
[1732023975180,0.8693,3109.3,3108.7,3.21671]
[1732023975403,0.95327624,3109.3,3108.9,3.21651]
[1732023975901,4.16949624,3109.3,3108.7,3.21669]
[1732023976078,4.16949624,3109.3,3108.8,3.21666]
[1732023976079,0.95327624,3109.3,3108.8,3.21666]
[1732023976279,0.95327624,3109.3,3108.5,3.21697]
[1732023976280,3.21632,3109.2,3108.5,3.21697]
[1732023976478,0.95327624,3109.3,3108.4,0.1877]
[1732023976479,0.08394978,3109.1,3108.4,0.1877]
[1732023976698,3.21633,3109.2,3108.6,3.21681]
[1732023976895,0.08394978,3109.0,3108.7,3.21677]
[1732023977106,0.8693,3109.3,3108.7,3.21677]
[1732023977107,0.8693,3109.3,3108.8,3.21658]
[1732023977307,0.08394044,3108.9,3108.8,3.21667]
[1732023977471,0.8693,3109.3,3108.8,3.21667]
[1732023977679,0.08392874,3109.2,3108.9,3.21653]
[1732023977869,0.8693,3109.3,3109.0,3.21646]
[1732023978179,0.8693,3109.3,3108.9,3.21649]
[1732023978180,0.08392718,3109.2,3108.9,3.21649]
[1732023978401,0.08392718,3109.2,3108.5,3.21693]
[1732023978708,4.08552,3109.3,3108.7,3.21676]
[1732023979271,0.08392487,3109.2,3108.7,3.21676]
[1732023979543,0.08392487,3109.2,3108.8,3.21664]
[1732023979710,0.08392487,3109.2,3109.0,3.21644]
[1732023979921,0.8693,3109.3,3107.9,6.21754]
[1732023979922,3.216,3109.5,3107.9,0.41985991]
[1732023979923,0.8339,3108.7,3107.9,0.41985991]
[1732023980214,3.0,3109.6,3107.0,0.1877]
[1732023980215,0.8152,3108.0,3107.0,0.1877]
[1732023980554,0.08081661,3107.9,3107.3,3.21816]
[1732023980761,3.21772,3107.8,3107.1,3.21841]
[1732023981052,3.21804,3107.5,3106.9,3.21863]
[1732023981351,0.89583896,3107.4,3106.9,3.21863]
[1732023981496,4.11404896,3107.4,3106.7,3.21884]
[1732023982216,0.89583896,3107.4,3106.6,3.40663]
[1732023982559,0.89583896,3107.4,3106.9,3.21864]
[1732023982909,0.89583896,3107.4,3106.9,3.21863]
[1732023983107,0.89583896,3107.4,3106.9,3.21853]
[1732023984006,0.89583896,3107.4,3106.8,3.21874]
[1732023984208,0.89583896,3107.4,3106.9,3.21862]
[1732023984839,0.89583896,3107.4,3106.8,3.21872]
[1732023985212,4.11395896,3107.4,3106.8,3.21872]
[1732023986423,4.11395896,3107.4,3106.6,0.06014913]
[1732023986424,3.21842,3107.2,3106.6,0.06014913]
[1732023986737,3.21842,3107.2,3106.5,3.21897]
[1732023986738,0.08055944,3107.1,3106.5,3.21897]
[1732023986935,3.29900944,3107.1,3106.5,3.21897]
[1732023987341,3.29900944,3107.1,3105.8,7.04759385]
[1732023987342,0.08055944,3107.1,3106.4,3.21914]
[1732023987510,0.08055944,3107.1,3106.8,3.21865]
[1732023987853,0.08055944,3107.1,3105.8,3.82785385]
[1732023987854,0.8152,3107.4,3107.0,3.21853]
[1732023988054,0.01,3108.3,3107.0,3.21853]
[1732023988055,3.21763,3107.9,3107.0,3.21853]
[1732023988211,0.08052281,3107.3,3107.2,3.21825]
[1732023988563,3.21731,3108.2,3107.6,3.21788]
[1732023989037,3.21731,3108.2,3107.3,0.1877]
[1732023989038,0.8037,3108.3,3107.9,3.21752]
[1732023989039,0.07783948,3108.1,3107.9,3.21752]
[1732023989237,0.8037,3108.3,3107.9,3.21752]
[1732023989437,0.8037,3108.3,3107.7,3.21779]
[1732023989649,0.07789091,3108.2,3107.7,3.21779]
[1732023989951,0.07789091,3108.2,3107.9,3.21758]
[1732023990362,0.8037,3108.3,3108.0,3.21749]
[1732023990660,0.07772425,3108.1,3107.4,3.21812]
[1732023990815,0.8037,3108.3,3107.8,3.21761]
[1732023991153,0.8037,3108.3,3107.9,3.21752]
[1732023991355,0.07774061,3108.2,3107.8,3.21761]
[1732023991524,0.07774061,3108.2,3107.7,3.21781]
[1732023991855,4.02089,3108.3,3107.6,3.21788]
[1732023992070,0.07774061,3108.1,3107.6,3.21788]
[1732023992370,4.422979,3108.3,3107.0,3.21849]
[1732023992371,3.21768,3107.9,3107.2,3.21832]
[1732023992878,3.21768,3107.9,3107.2,3.21824]
[1732023993035,0.8037,3108.3,3107.6,3.21788]
[1732023993036,0.07774298,3107.8,3107.6,3.21788]
[1732023993364,4.02094,3108.3,3107.8,3.21768]
[1732023993528,0.7909,3107.6,3106.6,0.1855]
[1732023993861,0.7909,3107.6,3105.8,0.01]
[1732023993862,0.7909,3107.6,3106.3,3.21917]
[1732023993863,3.7909,3107.6,3106.3,3.21917]
[1732023994176,3.7909,3107.6,3106.3,3.21918]
[1732023994177,0.7909,3107.0,3106.3,3.21918]
[1732023994312,3.21883,3106.8,3106.1,3.21941]
[1732023994513,3.29633855,3106.9,3106.2,3.21935]
[1732023994715,3.21864,3106.9,3106.2,3.21935]
[1732023994916,0.07769855,3106.8,3106.4,3.21908]
[1732023995167,3.29652855,3106.8,3106.2,3.21936]
[1732023995325,0.7909,3107.0,3105.9,3.40514]
[1732023995544,0.7909,3107.0,3106.1,3.21944]
[1732023995545,3.29660855,3106.7,3106.1,3.21944]
[1732023995766,3.21891,3106.7,3106.1,3.21944]
[1732023995963,0.07765955,3106.6,3106.1,3.21944]
[1732023996119,0.07765955,3106.6,3106.0,3.26760729]
[1732023996120,3.29660955,3106.6,3106.0,3.26760729]
[1732023996467,0.8145,3106.5,3106.0,3.26760729]
[1732023996775,4.0336,3106.5,3105.8,0.04805729]
[1732023996958,0.07765955,3106.4,3105.8,0.04805729]
[1732023997158,0.07765955,3106.4,3105.9,3.21958]
[1732023997560,0.07765955,3106.4,3106.0,0.04805894]
[1732023997991,4.03357,3106.5,3105.9,3.26764112]
[1732023998150,0.07763068,3106.3,3106.0,3.21956]
[1732023998359,0.8145,3106.5,3106.0,3.21956]
[1732023998844,0.07762288,3106.4,3106.0,3.21956]
[1732023999039,0.07762288,3106.4,3105.9,3.21958]
[1732023999306,0.07762288,3106.4,3104.8,0.1855]
[1732023999307,0.8047,3106.3,3104.8,0.1855]
[1732023999478,0.8047,3106.3,3105.4,3.22019]
[1732023999479,3.2195,3106.1,3105.4,3.22019]
[1732023999676,3.2195,3106.1,3104.8,0.1855]
[1732023999677,0.8198,3106.2,3104.8,0.1855]
[1732023999880,0.8198,3106.2,3105.3,3.22022]
[1732023999881,3.21965,3106.0,3105.3,3.22022]
[1732024000180,3.29728978,3105.9,3105.3,3.22022]
[1732024000354,3.29728978,3105.9,3105.4,3.22019]
[1732024000355,0.07761978,3105.9,3105.4,3.22019]
[1732024001455,3.29729978,3105.9,3105.3,3.22025]
[1732024001793,3.29729978,3105.9,3105.2,3.22036]
[1732024002396,0.07761978,3105.9,3105.2,3.22036]
[1732024002693,3.29729978,3105.9,3105.2,3.22036]
[1732024003574,0.8731,3105.8,3105.2,3.22036]
[1732024003782,0.8731,3105.8,3105.3,3.22028]
[1732024003968,0.07757218,3105.7,3105.3,3.22028]
[1732024004388,0.8731,3105.8,3105.3,3.22028]
[1732024004588,0.07757218,3105.6,3105.3,3.22028]
[1732024004795,0.8731,3105.8,3105.3,3.22028]
[1732024005006,0.07757218,3105.5,3105.3,3.22028]
[1732024005279,0.8123,3106.2,3105.7,3.21988]
[1732024005478,0.8123,3106.2,3106.0,3.21957]
[1732024005875,0.8123,3106.2,3106.1,3.21947]
[1732024006120,6.43758,3106.8,3106.1,3.21947]
[1732024006121,0.8022,3106.5,3106.1,3.21947]
[1732024006310,0.8022,3106.5,3106.2,3.21935]
[1732024007176,0.8022,3106.5,3106.0,3.21957]
[1732024007417,0.8022,3106.5,3106.1,3.21946]
[1732024007618,0.8022,3106.5,3106.2,3.21936]
[1732024008325,0.8022,3106.5,3105.5,3.40553]
[1732024008506,0.8053,3106.9,3106.4,3.21909]
[1732024009214,4.02395,3106.9,3106.3,0.06137687]
[1732024009416,4.02395,3106.9,3106.2,3.21927]
[1732024009417,3.2188,3106.8,3106.2,3.21927]
[1732024009616,3.21894,3106.7,3106.0,6.43903]
[1732024009827,3.21897,3106.6,3106.0,6.43901]
[1732024009990,3.21897,3106.6,3106.0,3.2195]
[1732024010196,3.21912,3106.5,3105.9,3.21963]
[1732024010547,0.8417,3106.3,3105.6,3.21993]
[1732024010694,3.21943,3106.2,3105.6,3.21993]
[1732024011037,4.06097,3106.3,3105.6,3.21993]
[1732024011227,3.2195,3106.1,3105.6,3.2199]
[1732024011534,3.2194,3106.2,3105.7,3.21988]
[1732024011740,3.2194,3106.2,3105.6,3.2199]
[1732024012319,3.21953,3106.1,3105.6,3.2199]
[1732024012514,3.2194,3106.2,3105.7,3.21988]
[1732024012710,3.2194,3106.2,3105.6,3.2199]
[1732024012909,0.8417,3106.3,3105.8,3.21973]
[1732024013124,0.07758308,3106.2,3105.8,3.21973]
[1732024013409,0.07758308,3106.2,3106.0,3.21954]
[1732024013608,0.07758308,3106.2,3106.1,3.21947]
[1732024013909,0.8337,3106.6,3106.0,3.21954]
[1732024014268,0.8337,3106.6,3105.3,3.0]
[1732024014269,0.07746061,3106.5,3106.4,3.21916]
[1732024015348,3.21855,3107.0,3106.5,3.21904]
[1732024015844,3.21864,3106.9,3106.4,3.21913]
[1732024017912,0.8441,3107.1,3105.9,3.21959]
[1732024018270,0.65226557,3107.5,3105.9,3.21959]
[1732024018271,0.8664,3107.4,3107.2,3.21831]
[1732024018562,0.8664,3107.8,3107.3,3.21822]
[1732024018769,0.8664,3107.8,3107.5,3.21792]
[1732024019056,0.8664,3108.1,3107.0,3.21849]
[1732024019210,0.8664,3108.1,3107.7,3.21781]
[1732024019773,0.8664,3108.4,3107.8,3.21761]
[1732024020289,4.08348,3108.4,3107.7,3.21776]
[1732024020566,0.8664,3108.4,3107.9,3.21759]
[1732024020771,0.8664,3108.4,3107.8,3.2177]
[1732024020772,0.8664,3108.4,3108.0,3.21749]
[1732024021268,0.8664,3108.4,3107.8,3.2177]
[1732024021622,0.8664,3108.4,3108.1,3.21738]
[1732024021977,0.8664,3108.4,3108.0,3.21748]
[1732024022179,0.8664,3108.4,3108.1,3.21739]
[1732024022468,0.8664,3108.4,3107.4,3.21811]
[1732024022469,3.21748,3108.1,3107.4,3.21811]
[1732024022766,3.21793,3107.6,3106.9,3.21855]
[1732024022928,3.21793,3107.6,3107.0,3.21853]
[1732024023157,3.21771,3107.8,3107.0,3.21853]
[1732024023339,3.21782,3107.7,3107.1,3.21842]
[1732024023541,0.79072638,3107.8,3107.1,3.21842]
[1732024023763,0.8717,3108.0,3107.5,3.21798]
[1732024024434,3.21812,3107.4,3106.2,3.21929]
[1732024024625,0.01,3107.8,3106.2,3.21929]
[1732024024626,3.21875,3106.8,3106.2,3.21929]
[1732024024973,0.8514,3106.9,3106.2,3.21929]
[1732024025264,0.8514,3106.9,3106.0,3.21955]
[1732024025473,3.21875,3106.8,3106.2,3.21936]
[1732024025830,0.8514,3106.9,3105.9,0.1891]
[1732024026179,0.8514,3106.9,3106.5,3.21903]
[1732024026877,3.21877,3106.8,3106.2,3.21934]